bitfinex/quotes_ETHUSD_20240703
["timestamp","ask_amount","ask_price","bid_price","bid_amount"]
[1720048170377,4.27863207,3302.1,3302.0,0.05439517]
[1720048170681,2.37048004,3302.1,3301.9,0.899]
[1720048170877,2.22601141,3302.3,3302.0,0.05447754]
[1720048171110,2.37047741,3302.2,3302.0,0.05447754]
[1720048171418,2.3705182,3302.1,3302.0,0.05447754]
[1720048171615,4.27842428,3302.1,3302.0,0.05447754]
[1720048171919,4.27842607,3302.1,3302.0,0.05447754]
[1720048172300,2.3705182,3302.1,3302.0,0.05447754]
[1720048172509,4.27838641,3302.1,3302.0,0.05447754]
[1720048172882,2.3705182,3302.1,3302.0,0.05447754]
[1720048173597,4.27833933,3302.1,3302.0,0.05447754]
[1720048173917,4.27833933,3302.1,3302.0,8.82700929]
[1720048174079,6.764,3302.8,3302.2,3.02825]
[1720048174284,2.22565042,3302.5,3302.3,0.899]
[1720048174503,2.37030274,3302.4,3302.3,0.9536048]
[1720048175396,2.37030274,3302.4,3302.3,3.9817948]
[1720048177792,2.37030274,3302.4,3302.3,7.71098928]
[1720048178029,1.32149622,3302.4,3302.3,13.05657928]
[1720048178190,8.67210539,3302.8,3302.6,2.3174]
[1720048178393,6.764,3302.8,3302.7,1.48802128]
[1720048178592,9.13375151,3302.8,3302.7,1.48802128]
[1720048179219,9.13375151,3302.8,3302.7,7.54366128]
[1720048179650,9.13375151,3302.8,3302.7,3.08230128]
[1720048179651,11.04190343,3302.8,3302.7,3.08230128]
[1720048179937,9.13379804,3302.8,3302.7,3.08230128]
[1720048180342,9.13400621,3302.8,3302.7,3.02782]
[1720048180553,4.91929081,3302.8,3302.7,3.02782]
[1720048180732,2.54928032,3302.8,3302.7,3.08214035]
[1720048180907,4.91933131,3302.8,3302.7,3.08214035]
[1720048181841,4.91933131,3302.8,3302.7,0.05432035]
[1720048183530,4.91933245,3302.8,3302.7,0.05432035]
[1720048184038,5.63381896,3302.8,3302.7,0.05432035]
[1720048184243,7.5971745,3302.8,3302.3,0.899]
[1720048184419,1.90774744,3302.4,3302.3,0.899]
[1720048184614,4.27779884,3302.4,3302.3,0.899]
[1720048184819,5.77840623,3302.4,3302.3,0.899]
[1720048186626,1.50060739,3302.4,3302.3,0.899]
[1720048186834,4.27810276,3302.4,3302.3,0.899]
[1720048187032,5.77871015,3302.4,3302.3,0.899]
[1720048189944,1.50060739,3302.4,3302.3,0.899]
[1720048190148,4.2781921,3302.4,3302.3,0.899]
[1720048190351,1.50060739,3302.4,3302.3,0.899]
[1720048190555,4.27817269,3302.4,3302.3,0.899]
[1720048190754,5.77878008,3302.4,3302.3,0.899]
[1720048192933,5.77878008,3302.4,3302.3,0.95334279]
[1720048193132,3.87084284,3302.4,3302.3,3.98153279]
[1720048193360,5.77884357,3302.4,3302.3,3.98153279]
[1720048193578,6.82761441,3302.4,3302.3,3.08253279]
[1720048193759,6.8276404,3302.4,3302.3,3.98153279]
[1720048194359,6.8276404,3302.4,3302.3,6.35803279]
[1720048194557,3.87083545,3302.4,3302.3,6.35803279]
[1720048195780,6.82974873,3302.4,3302.3,3.08253279]
[1720048196069,4.92171723,3302.4,3302.3,3.98153279]
[1720048196381,3.87290447,3302.4,3302.3,3.98153279]
[1720048196951,3.87289895,3302.4,3302.3,3.98153279]
[1720048198047,2.37018416,3302.4,3302.3,7.94835707]
[1720048198271,2.63868112,3302.4,3302.3,10.26495707]
[1720048198495,2.63868112,3302.4,3302.3,13.29314707]
[1720048198496,2.32060104,3302.4,3302.3,13.29314707]
[1720048198648,1.04877351,3302.4,3302.3,13.29314707]
[1720048199850,2.00239658,3302.4,3302.3,13.29314707]
[1720048200050,0.95362307,3302.4,3302.3,13.29314707]
[1720048200501,0.95362307,3302.4,3302.3,16.48714707]
[1720048200793,0.95362307,3302.4,3302.3,17.03714707]
[1720048202359,0.95362307,3302.4,3302.3,16.13814707]
[1720048202557,0.95362307,3302.4,3302.3,17.03714707]
[1720048203490,0.95362307,3302.5,3302.4,9.0843]
[1720048203646,0.95362307,3302.5,3302.4,16.18011471]
[1720048203851,0.95362307,3302.5,3302.4,16.23419928]
[1720048204287,1.27182753,3302.6,3302.5,9.084]
[1720048204579,1.27182753,3302.6,3302.5,12.46737236]
[1720048204949,1.27182753,3302.6,3302.5,12.52145693]
[1720048205505,6.764,3302.9,3302.8,6.05546]
[1720048205665,6.764,3302.9,3302.8,6.95446]
[1720048206165,6.764,3302.9,3302.8,7.00854457]
[1720048206366,7.81256495,3302.9,3302.8,7.00854457]
[1720048207795,6.764,3302.9,3302.8,7.00854457]
[1720048210299,1.90573617,3303.1,3303.0,3.02755]
[1720048210504,4.27547371,3303.1,3303.0,3.02755]
[1720048210663,5.79132639,3303.1,3303.0,3.08158593]
[1720048211089,3.88559022,3303.1,3303.0,3.08158593]
[1720048211457,3.88556933,3303.1,3303.0,3.08158593]
[1720048211561,5.79110414,3303.1,3303.0,3.98058593]
[1720048212173,3.88556933,3303.1,3303.0,3.98058593]
[1720048212380,5.79110414,3303.1,3303.0,3.98058593]
[1720048213869,5.79110414,3303.1,3303.0,7.00813593]
[1720048214109,3.88556933,3303.1,3303.0,7.00813593]
[1720048214605,5.79117593,3303.1,3303.0,7.00813593]
[1720048217748,1.51585268,3303.1,3303.0,7.00813593]
[1720048217880,3.22717038,3303.1,3303.0,7.00813593]
[1720048218079,5.79157497,3303.1,3303.0,7.00813593]
[1720048218307,0.00364659,3303.3,3303.2,3.02736]
[1720048218501,3.88733352,3303.3,3303.2,3.02736]
[1720048218692,3.88733352,3303.3,3303.2,3.08135104]
[1720048219421,6.11101569,3303.3,3303.2,3.08135104]
[1720048220926,5.06314502,3303.3,3303.2,3.08135104]
[1720048221086,6.11171416,3303.3,3303.2,3.08135104]
[1720048223697,3.88733244,3303.3,3303.2,3.08135104]
[1720048223886,6.11217986,3303.3,3303.2,3.08135104]
[1720048224411,6.11216727,3303.3,3303.2,3.08135104]
[1720048227537,5.06346141,3303.3,3303.2,3.08135104]
[1720048227693,6.11201156,3303.3,3303.2,3.08135104]
[1720048229534,3.88728952,3303.3,3303.2,3.08135104]
[1720048229830,6.11201156,3303.3,3303.2,3.08135104]
[1720048230604,1.51756618,3303.3,3303.2,3.08135104]
[1720048230813,3.88726111,3303.3,3303.2,3.08135104]
[1720048231019,6.11207594,3303.3,3303.2,3.08135104]
[1720048231221,6.11209255,3303.3,3303.2,3.08135104]
[1720048231798,6.11209255,3303.3,3303.2,3.11209424]
[1720048233723,6.11209255,3303.3,3303.2,4.01109424]
[1720048233947,5.06398482,3303.3,3303.2,4.01109424]
[1720048234097,1.51756618,3303.3,3303.2,4.01109424]
[1720048234297,3.88717792,3303.3,3303.2,4.01109424]
[1720048235747,3.88717792,3303.3,3303.2,9.47635424]
[1720048235912,2.37325833,3303.3,3303.2,10.42398966]
[1720048236111,1.05214736,3303.3,3303.2,10.42398966]
[1720048236309,2.37312484,3303.3,3303.2,10.42398966]
[1720048236639,2.3731258,3303.3,3303.2,10.42398966]
[1720048236815,1.05214736,3303.3,3303.2,10.42398966]
[1720048237139,1.05204192,3303.3,3303.2,10.42398966]
[1720048238016,0.00364659,3303.3,3303.2,10.42398966]
[1720048239334,0.00364659,3303.3,3303.2,13.45134966]
[1720048239536,1.59292801,3303.3,3303.2,13.45134966]
[1720048240426,11.6796073,3304.2,3303.9,3.02672]
[1720048240624,8.7985947,3304.1,3303.9,3.02672]
[1720048240814,5.87255352,3304.0,3303.9,3.02672]
[1720048241144,6.13459049,3304.0,3303.9,3.11110258]
[1720048241842,6.13459049,3304.0,3303.9,4.01010258]
[1720048242144,3.9097223,3304.0,3303.9,4.01010258]
[1720048243407,2.58872457,3304.0,3303.9,7.03682258]
[1720048243604,3.90954239,3304.0,3303.9,7.03682258]
[1720048243819,1.54045643,3304.0,3303.9,7.03682258]
[1720048244020,4.76764822,3304.0,3303.9,8.04318084]
[1720048244301,4.76764822,3304.0,3303.9,11.06990084]
[1720048244541,1.90641235,3304.3,3304.2,6.0529]
[1720048244845,1.90641235,3304.5,3304.2,0.899]
[1720048245008,1.90641235,3304.6,3304.5,3.02617]
[1720048245203,3.92165959,3304.6,3304.5,3.02617]
[1720048245430,5.82617622,3304.6,3304.5,3.11040673]
[1720048246318,5.82617622,3304.6,3304.5,3.02617]
[1720048246518,5.82613879,3304.6,3304.5,3.02617]
[1720048246719,2.87358685,3304.6,3304.5,3.02617]
[1720048246910,2.87357905,3304.6,3304.5,3.02617]
[1720048247449,1.90448026,3304.7,3304.4,0.899]
[1720048247751,1.90448026,3305.0,3304.8,3.0259]
[1720048247910,2.87123024,3304.9,3304.8,6.0518]
[1720048248220,1.90448026,3305.1,3304.9,3.92481]
[1720048248419,1.90448026,3305.1,3305.0,3.02571]
[1720048248633,2.3228,3305.3,3304.9,3.92481]
[1720048248634,4.22728026,3305.3,3304.9,3.92481]
[1720048248829,2.36832418,3305.2,3305.1,3.02562]
[1720048249046,4.22728026,3305.3,3305.1,3.02562]
[1720048249251,4.22728026,3305.3,3305.1,3.10929211]
[1720048249462,1.54746454,3305.2,3305.1,3.10929211]
[1720048249748,3.42192803,3305.3,3305.1,3.10929211]
[1720048250551,5.32357502,3305.3,3305.1,0.08367211]
[1720048251435,1.54605876,3305.2,3305.1,0.08367211]
[1720048251654,0.68696338,3305.2,3305.1,0.08367211]
[1720048253339,3.42192803,3305.3,3305.0,3.02571]
[1720048253541,1.58241351,3305.2,3305.0,3.02571]
[1720048253719,1.58241351,3305.2,3305.1,0.08354502]
[1720048253918,1.58201483,3305.2,3305.1,0.08354502]
[1720048254113,1.58201483,3305.2,3305.0,3.02571]
[1720048254315,1.58201483,3305.2,3305.1,0.08354502]
[1720048254508,1.58201483,3305.2,3305.0,3.02571]
[1720048254737,1.26531361,3305.1,3305.0,3.02571]
[1720048255139,1.58201483,3305.2,3305.0,3.02571]
[1720048255646,1.26507481,3305.1,3305.0,3.92471]
[1720048256457,1.26505166,3305.1,3305.0,3.92471]
[1720048257214,1.26505166,3305.3,3305.1,3.02562]
[1720048257751,0.94841104,3305.2,3305.1,3.02562]
[1720048258351,1.26505166,3305.3,3305.1,3.02562]
[1720048259459,0.94813614,3305.2,3305.1,3.02562]
[1720048262325,1.26869825,3305.4,3305.1,3.02562]
[1720048262326,0.94813614,3305.3,3305.1,3.02562]
[1720048263219,0.63187668,3305.2,3305.1,3.02562]
[1720048263426,3.33493614,3305.2,3304.8,3.02589]
[1720048263728,0.63191948,3305.0,3304.8,3.02589]
[1720048264662,0.63191948,3304.9,3304.4,3.02625]
[1720048264869,0.631953,3304.7,3304.4,3.02625]
[1720048265073,0.631953,3304.6,3304.4,3.02625]
[1720048265361,0.631953,3304.5,3304.4,3.02625]
[1720048265932,0.94813614,3304.6,3304.4,3.02625]
[1720048266255,0.63207076,3304.5,3304.4,3.02625]
[1720048266448,0.94813614,3304.6,3304.4,3.02625]
[1720048266650,0.94813614,3304.6,3304.2,3.02641]
[1720048266873,0.63213726,3304.4,3304.2,3.02641]
[1720048267375,0.63213726,3304.3,3304.2,3.02641]
[1720048267672,0.63224095,3304.3,3304.2,3.02641]
[1720048267834,0.63224095,3304.3,3304.2,3.1094922]
[1720048268472,0.94836142,3304.4,3304.2,3.1094922]
[1720048269190,0.63233047,3304.3,3304.2,0.0830822]
[1720048269335,0.63233047,3304.4,3304.3,3.92535]
[1720048269533,0.6324064,3304.4,3304.3,4.0084322]
[1720048270134,0.94836142,3304.5,3304.3,4.0084322]
[1720048271830,1.04815113,3304.4,3304.3,4.0084322]
[1720048272258,0.94836142,3304.5,3304.3,4.0084322]
[1720048272472,1.99650977,3304.4,3304.3,4.0084322]
[1720048272834,1.99650977,3304.4,3304.3,3.1094322]
[1720048273735,0.94836142,3304.4,3304.3,3.1094322]
[1720048273926,1.99650026,3304.4,3304.3,3.1094322]
[1720048275046,1.04813884,3304.4,3304.3,3.1094322]
[1720048276465,1.2644819,3304.6,3304.4,3.02626]
[1720048276689,1.04812144,3304.5,3304.4,3.92526]
[1720048277106,2.3125953,3304.5,3304.4,3.92526]
[1720048278807,2.4236,3304.4,3304.2,3.02643]
[1720048278980,1.0481134,3304.3,3303.7,3.02684]
[1720048279191,1.26742855,3303.9,3303.6,3.02695]
[1720048279388,1.26742855,3303.9,3303.6,3.02692]
[1720048279389,1.26742855,3303.7,3303.6,3.02692]
[1720048280016,1.2679114,3303.8,3303.7,3.0269]
[1720048280224,1.267835,3303.8,3303.7,3.9259]
[1720048280546,1.58479375,3303.9,3303.7,3.9259]
[1720048281082,1.58479375,3303.8,3303.7,3.9259]
[1720048281816,1.0483577,3303.8,3303.7,3.9259]
[1720048282022,1.58565524,3303.8,3303.7,3.9259]
[1720048283048,1.58565524,3303.8,3303.7,4.00656757]
[1720048283258,0.28131706,3304.3,3303.7,4.00656757]
[1720048283408,1.58573399,3303.8,3303.7,4.00656757]
[1720048284045,0.28131706,3304.3,3303.7,4.00656757]
[1720048284363,1.58594222,3303.8,3303.7,4.00656757]
[1720048285561,1.90677726,3304.1,3303.7,4.00656757]
[1720048285746,3.96767213,3304.0,3303.7,4.00656757]
[1720048285952,1.90313067,3304.0,3303.7,4.00656757]
[1720048286149,1.04834377,3303.9,3303.7,4.00656757]
[1720048286460,1.90677726,3304.1,3303.8,3.02681]
[1720048286665,1.90677726,3304.1,3303.8,3.92581]
[1720048286666,3.96758652,3304.0,3303.8,3.92581]
[1720048286882,1.90333152,3304.0,3303.8,3.92581]
[1720048287088,3.50187093,3304.0,3303.9,0.08066757]
[1720048287252,5.87112849,3304.0,3303.9,0.08066757]
[1720048287988,6.458606,3304.0,3303.9,0.08066757]
[1720048288158,6.97887448,3304.0,3303.9,0.08066757]
[1720048288486,9.19942792,3304.0,3303.4,3.02715]
[1720048288691,1.90382959,3303.7,3303.4,3.02715]
[1720048288998,3.96779697,3303.6,3303.4,3.02715]
[1720048289173,1.90382959,3303.7,3303.4,3.02715]
[1720048289375,2.64960696,3303.6,3303.5,0.080948]
[1720048289744,2.64960375,3303.6,3303.5,0.080948]
[1720048290390,3.97067347,3303.6,3303.5,0.080948]
[1720048290984,4.55809101,3303.6,3303.5,0.080948]
[1720048291184,3.23702215,3303.6,3303.1,3.92639]
[1720048291362,1.2685221,3303.2,3303.1,3.92639]
[1720048293049,1.2685221,3303.2,3303.1,6.95384]
[1720048293392,1.2685221,3303.3,3303.2,3.02736]
[1720048293593,1.2685221,3303.4,3303.3,3.02727]
[1720048293760,1.5849457,3303.5,3303.3,3.92627]
[1720048294172,1.5849457,3303.5,3303.4,3.02718]
[1720048294492,2.63341674,3303.5,3303.3,0.899]
[1720048294786,1.5849457,3303.5,3303.3,3.92627]
[1720048295005,1.5849457,3303.4,3303.3,3.92627]
[1720048295147,1.5849457,3303.5,3303.3,3.92627]
[1720048295351,1.5849457,3303.5,3303.1,3.02741]
[1720048295675,1.2676875,3303.3,3303.2,0.899]
[1720048296051,3.02673,3303.9,3303.2,0.899]
[1720048296304,1.26755091,3303.3,3303.2,0.899]
[1720048296463,1.26755091,3303.3,3303.2,3.92636]
[1720048297787,1.26755091,3303.3,3303.2,4.007308]
[1720048298203,1.26755091,3303.3,3303.2,3.108308]
[1720048298368,1.26755091,3303.3,3303.2,4.007308]
[1720048299391,1.26755091,3303.3,3303.2,3.108308]
[1720048299767,1.26755091,3303.3,3303.2,4.007308]
[1720048302593,1.26738078,3303.3,3303.2,4.007308]
[1720048305671,1.26778431,3303.3,3303.2,4.007308]
[1720048307616,1.04848001,3303.3,3303.2,4.007308]
[1720048308818,1.58532234,3303.4,3303.2,4.007308]
[1720048308997,2.3167221,3303.3,3303.2,7.034668]
[1720048309197,1.0484656,3303.3,3303.2,7.7381348]
[1720048309602,2.31704525,3303.3,3303.2,7.7381348]
[1720048309912,1.26857965,3303.3,3303.2,7.7381348]
[1720048310085,1.04844865,3303.3,3303.2,7.7381348]
[1720048311506,2.31742459,3303.3,3303.2,7.7381348]
[1720048311672,1.26897594,3303.4,3303.3,6.05454]
[1720048311908,1.26897594,3303.4,3303.3,9.31073548]
[1720048312215,1.90334328,3303.8,3303.6,3.02693]
[1720048312421,1.04838353,3303.7,3303.6,3.92593]
[1720048312834,1.04838353,3303.7,3303.6,4.00738652]
[1720048314144,3.95879953,3303.7,3303.6,4.00738652]
[1720048314306,1.04838353,3303.7,3303.6,4.00738652]
[1720048315213,1.90396876,3303.8,3303.7,3.02686]
[1720048315414,5.86299569,3303.8,3303.7,3.02686]
[1720048315908,3.95902693,3303.8,3303.7,3.10831652]
[1720048316209,2.4136,3303.3,3302.5,3.02792]
[1720048316519,1.90469093,3302.7,3302.3,3.02818]
[1720048316735,1.58740334,3302.4,3302.3,3.02818]
[1720048316930,2.63578694,3302.4,3302.3,3.92718]
[1720048317353,2.63578694,3302.4,3302.3,3.02818]
[1720048318129,1.58740334,3302.4,3302.3,3.02818]
[1720048318647,2.22213942,3303.1,3302.3,3.02818]
[1720048318648,9.7914,3303.2,3302.3,3.02818]
[1720048318810,1.58686899,3302.4,3302.3,3.02818]
[1720048319221,1.58686899,3302.5,3302.3,3.02818]
[1720048320136,1.58686899,3302.4,3302.3,3.02818]
[1720048321054,1.58689164,3302.4,3302.3,3.02818]
[1720048321619,1.58681236,3302.4,3302.3,3.02818]
[1720048322028,1.58681236,3302.5,3302.3,3.02818]
[1720048322255,1.58681236,3302.5,3302.4,0.899]
[1720048323172,1.90417483,3302.8,3302.4,0.899]
[1720048323331,1.58694655,3302.5,3302.4,0.899]
[1720048323776,1.90417483,3302.8,3302.1,3.02835]
[1720048324079,3.02755,3303.0,3302.3,0.899]
[1720048324080,5.89042954,3302.7,3302.3,0.899]
[1720048324278,1.58737332,3302.4,3302.3,0.899]
[1720048324474,1.58737332,3302.4,3302.3,3.92719]
[1720048324684,1.58737332,3302.4,3302.3,3.9953565]
[1720048327004,3.02755,3303.0,3302.3,3.9953565]
[1720048327204,1.58699638,3302.4,3302.3,3.9953565]
[1720048328276,1.58699638,3302.4,3302.3,3.0963565]
[1720048328574,1.58699638,3302.4,3302.3,3.9953565]
[1720048330375,1.5868076,3302.4,3302.3,3.9953565]
[1720048330775,1.58671163,3302.4,3302.3,3.9953565]
[1720048333505,1.58677338,3302.4,3302.3,3.9953565]
[1720048333866,1.58677341,3302.4,3302.3,3.9953565]
[1720048335801,1.58677341,3302.5,3302.4,3.0281]
[1720048336011,1.58677341,3302.5,3302.4,3.9271]
[1720048336166,1.58677341,3302.5,3302.4,3.9956995]
[1720048336600,0.00364659,3302.7,3302.6,3.02791]
[1720048337119,0.00364659,3302.7,3302.6,3.0965095]
[1720048340892,0.00364659,3302.7,3302.6,3.09468797]
[1720048341098,1.05237833,3302.7,3302.6,3.09468797]
[1720048342983,1.05237833,3302.7,3302.6,5.43798797]
[1720048342984,1.05237651,3302.7,3302.6,5.43798797]
[1720048343186,2.63905984,3302.7,3302.6,3.99368797]
[1720048343384,0.00364659,3302.7,3302.6,3.99368797]
[1720048343584,1.0523239,3302.7,3302.6,3.99368797]
[1720048343879,1.0523239,3302.7,3302.6,3.92508847]
[1720048344286,1.05234057,3302.7,3302.6,3.9936693]
[1720048346211,1.05234684,3302.7,3302.6,3.9936693]
[1720048349429,1.05234631,3302.7,3302.6,3.9936693]
[1720048350392,2.68802797,3302.7,3302.6,3.0946693]
[1720048350719,1.05234631,3302.7,3302.6,3.0946693]
[1720048352542,0.00364659,3302.7,3302.6,3.0946693]
[1720048352709,1.05235895,3302.7,3302.6,3.0946693]
[1720048354649,1.05235895,3302.7,3302.6,6.1225793]
[1720048355846,0.00364659,3302.7,3302.6,6.1225793]
[1720048356013,0.00364659,3302.7,3302.6,7.0215793]
[1720048356208,0.00364659,3302.7,3302.6,6.1225793]
[1720048356446,1.052314,3302.7,3302.6,6.1225793]
[1720048358143,2.37364151,3302.7,3302.6,6.1225793]
[1720048358918,0.00364659,3302.7,3302.6,6.1225793]
[1720048359117,1.05231919,3302.7,3302.6,6.1225793]
[1720048359411,4.01804449,3302.7,3302.6,6.1225793]
[1720048360231,5.92458134,3302.7,3302.6,6.1225793]
[1720048361948,4.01804449,3302.7,3302.6,6.1225793]
[1720048362254,2.96936984,3302.7,3302.6,6.1225793]
[1720048362449,4.01804082,3302.7,3302.6,6.1225793]
[1720048364862,4.01804082,3302.7,3302.6,3.0946693]
[1720048365052,4.88074463,3302.7,3302.6,3.0946693]
[1720048365557,4.88076839,3302.7,3302.6,3.0946693]
[1720048367036,4.01806458,3302.7,3302.6,3.0946693]
[1720048368429,1.64804441,3302.7,3302.6,3.0946693]
[1720048368635,4.01807113,3302.7,3302.6,3.0946693]
[1720048368966,2.96940107,3302.7,3302.6,3.0946693]
[1720048369173,4.01809683,3302.7,3302.6,3.0946693]
[1720048369756,4.01809683,3302.7,3302.6,3.9936693]
[1720048370878,6.24619595,3302.7,3302.6,3.9936693]
[1720048371583,4.92483929,3302.7,3302.6,3.9936693]
[1720048371746,6.2462424,3302.7,3302.6,3.9936693]
[1720048374039,6.2462424,3302.7,3302.6,3.0946693]
[1720048375077,6.24649646,3302.7,3302.6,3.0946693]
[1720048377167,6.24649646,3302.7,3302.6,3.9936693]
[1720048378164,1.64804441,3302.7,3302.6,3.9936693]
[1720048378372,4.60236981,3302.7,3302.6,3.9936693]
[1720048378664,4.60236981,3302.7,3302.6,6.3928693]
[1720048378665,6.24676763,3302.7,3302.6,6.3928693]
[1720048378867,4.01812341,3302.7,3302.6,9.4207793]
[1720048379356,4.01812341,3302.7,3302.6,8.5217793]
[1720048379554,4.01812341,3302.7,3302.6,9.4207793]
[1720048380391,4.01812341,3302.7,3302.6,10.36285723]
[1720048380555,2.96941589,3302.7,3302.6,13.39076723]
[1720048380889,1.64804441,3302.7,3302.6,13.39076723]
[1720048381062,1.32479574,3302.7,3302.6,13.39076723]
[1720048381258,0.00364659,3302.7,3302.6,13.39076723]
[1720048381784,1.59538716,3302.7,3302.6,13.39076723]
[1720048381989,1.2765224,3302.7,3302.6,16.94076723]
[1720048385272,0.00364659,3302.7,3302.6,16.94076723]
[1720048387174,0.95735842,3302.7,3302.6,16.94076723]
[1720048389224,2e-08,3302.9,3302.8,12.27719]
[1720048389426,1.58953753,3303.4,3303.0,8.53325]
[1720048389575,1.58953753,3303.4,3303.3,0.899]
[1720048389772,1.58953753,3303.4,3303.3,9.98081]
[1720048390100,6.764,3303.9,3303.8,6.05362]
[1720048390407,2.22408825,3304.2,3304.1,3.02654]
[1720048390571,11.24488825,3304.4,3304.3,3.02635]
[1720048390767,12.93487075,3304.4,3304.3,3.02635]
[1720048392323,14.83874851,3304.4,3304.3,3.02635]
[1720048392780,12.93487075,3304.4,3304.3,3.02635]
[1720048393108,12.0817627,3304.4,3304.3,3.02635]
[1720048393408,14.45075158,3304.4,3304.3,3.02635]
[1720048393605,14.45076449,3304.4,3304.3,3.02635]
[1720048394681,7.68676449,3304.4,3304.3,3.02635]
[1720048394983,8.07378767,3304.4,3304.3,3.02635]
[1720048395399,3.8018668,3304.4,3304.3,3.02635]
[1720048395604,1.90291908,3304.6,3304.4,3.02626]
[1720048395791,2.86032022,3304.5,3304.4,3.02626]
[1720048395990,3.90849251,3304.5,3304.4,3.02626]
[1720048396196,1.53963131,3304.5,3304.4,3.09406021]
[1720048396409,1.90230987,3304.6,3304.4,3.09406021]
[1720048396869,1.90230987,3304.6,3304.5,3.02617]
[1720048397082,3.91069231,3304.6,3304.5,3.02617]
[1720048397286,2.2568,3304.7,3304.6,3.02608]
[1720048397484,3.79811823,3304.7,3304.6,3.02608]
[1720048397707,9.31567933,3304.7,3304.6,3.02608]
[1720048398030,9.31567933,3304.7,3304.6,0.06780021]
[1720048398397,9.31567933,3304.7,3304.6,3.02608]
[1720048398727,9.31567933,3304.7,3304.6,3.09354064]
[1720048399400,5.04456104,3304.7,3304.6,3.09354064]
[1720048399723,6.09270524,3304.7,3304.6,3.09354064]
[1720048400526,4.55138701,3304.7,3304.6,3.09354064]
[1720048400887,3.3049442,3304.7,3304.6,3.09354064]
[1720048402592,2.2568,3304.7,3304.6,3.09354064]
[1720048402791,3.30494194,3304.7,3304.6,3.09354064]
[1720048404428,2.2568,3304.7,3304.6,3.09354064]
[1720048404599,3.30496543,3304.7,3304.6,3.09354064]
[1720048404798,3.82536049,3304.7,3304.6,3.09354064]
[1720048405003,3.82536049,3304.7,3304.6,0.06746064]
[1720048406133,2.4294,3304.6,3304.2,3.02644]
[1720048406428,1.26613365,3304.3,3304.2,3.02644]
[1720048406627,1.58267266,3304.4,3304.2,3.02644]
[1720048406993,1.26613598,3304.3,3304.2,3.02644]
[1720048408321,2.31436398,3304.3,3304.2,3.02644]
[1720048409192,1.048228,3304.3,3304.2,3.02644]
[1720048409426,2.31430419,3304.3,3304.2,3.02644]
[1720048410607,2.31429798,3304.3,3304.2,3.02644]
[1720048411008,2.31429802,3304.3,3304.2,3.02644]
[1720048413749,1.26607619,3304.3,3304.2,3.02644]
[1720048414056,2.31428423,3304.3,3304.2,3.02644]
[1720048414548,1.04820804,3304.3,3304.2,6.05289]
[1720048414849,1.26607619,3304.4,3304.3,3.02635]
[1720048415050,2.31421526,3304.4,3304.3,6.9517]
[1720048417035,1.26607619,3304.4,3304.3,6.9517]
[1720048417239,2.31420884,3304.4,3304.3,6.9517]
[1720048417851,2.31420884,3304.4,3304.3,7.0192017]
[1720048419147,1.04813265,3304.4,3304.3,7.0192017]
[1720048420116,2.63118042,3304.4,3304.3,7.0192017]
[1720048420319,1.90095907,3304.7,3304.5,3.02611]
[1720048420627,1.04816155,3304.6,3304.5,3.02611]
[1720048420833,1.04815624,3304.6,3304.5,3.02611]
[1720048421047,1.04815624,3304.6,3304.5,3.0936117]
[1720048421220,3.92574444,3304.6,3304.5,3.0936117]
[1720048421422,2.60506706,3304.6,3304.5,3.0936117]
[1720048421924,5.82676767,3304.6,3304.5,3.0936117]
[1720048423244,3.92576113,3304.6,3304.5,3.0936117]
[1720048423446,2.60507826,3304.6,3304.5,3.0936117]
[1720048423786,3.92577156,3304.6,3304.5,3.0936117]
[1720048426546,2.87760309,3304.6,3304.5,3.0936117]
[1720048426751,3.92578076,3304.6,3304.5,3.0936117]
[1720048428651,6.14753829,3304.6,3304.5,3.0936117]
[1720048429895,5.10046841,3304.6,3304.5,3.0936117]
[1720048430079,6.14864342,3304.6,3304.5,3.0936117]
[1720048432285,5.88842848,3304.6,3304.5,3.0936117]
[1720048433095,5.88843197,3304.6,3304.5,3.0936117]
[1720048433518,1.55691082,3304.6,3304.5,3.0936117]
[1720048433686,2.60508478,3304.6,3304.5,3.0936117]
[1720048433893,5.88839624,3304.6,3304.5,3.0936117]
[1720048434279,7.66455024,3304.6,3304.5,3.0936117]
[1720048435319,10.29312589,3304.6,3304.5,3.0936117]
[1720048436081,5.96164047,3304.6,3304.5,3.0936117]
[1720048436279,10.29594841,3304.6,3304.5,3.0936117]
[1720048436595,7.66459797,3304.6,3304.5,3.0936117]
[1720048437404,8.97653396,3304.6,3304.5,0.0675017]
[1720048437741,8.97653396,3304.6,3304.2,3.0264]
[1720048438035,6.62050794,3304.5,3304.2,3.0264]
[1720048438242,7.66874698,3304.4,3304.3,0.06741216]
[1720048439516,8.56681011,3304.4,3304.3,0.06741216]
[1720048439759,11.02231003,3304.4,3304.3,0.06741216]
[1720048439909,11.02231003,3304.4,3304.0,3.02663]
[1720048440109,10.30039293,3304.3,3304.0,3.02663]
[1720048440459,7.66895225,3304.2,3304.0,3.02663]
[1720048440752,5.89322494,3304.1,3304.0,3.02663]
[1720048441808,1.56151569,3304.1,3304.0,3.02663]
[1720048442034,2.36912535,3304.1,3304.0,3.02663]
[1720048442204,3.93064104,3304.1,3304.0,3.02663]
[1720048442405,5.89339392,3304.1,3304.0,3.02663]
[1720048443762,6.15807493,3304.1,3304.0,3.02663]
[1720048445056,3.93054478,3304.1,3304.0,3.02663]
[1720048445450,1.56151569,3304.1,3304.0,3.02663]
[1720048445638,3.93057786,3304.1,3304.0,3.02663]
[1720048446363,3.93057786,3304.1,3304.0,6.05326]
[1720048447766,3.93057786,3304.1,3304.0,7.0483523]
[1720048448134,1.56151569,3304.1,3304.0,7.0483523]
[1720048448339,3.93043137,3304.1,3304.0,7.0483523]
[1720048448670,3.93043183,3304.1,3304.0,7.0483523]
[1720048451472,3.93044785,3304.1,3304.0,7.0483523]
[1720048452631,3.93044785,3304.1,3304.0,6.1208363]
[1720048454474,1.56151569,3304.1,3304.0,6.1208363]
[1720048454687,3.9304422,3304.1,3304.0,6.1208363]
[1720048456731,5.8395156,3304.1,3304.0,6.1208363]
[1720048457332,3.9304422,3304.1,3304.0,6.1208363]
[1720048457525,3.9304422,3304.1,3304.0,7.35777893]
[1720048457769,3.9304001,3304.1,3304.0,7.35777893]
[1720048458070,1.56151569,3304.1,3304.0,7.35777893]
[1720048458387,3.93039584,3304.1,3304.0,7.35777893]
[1720048459734,5.83946457,3304.1,3304.0,7.35777893]
[1720048460057,3.93039584,3304.1,3304.0,7.35777893]
[1720048460856,3.93044661,3304.1,3304.0,8.25677893]
[1720048461234,5.83952164,3304.1,3304.0,8.25677893]
[1720048461435,3.93044661,3304.1,3304.0,8.25677893]
[1720048463971,1.56151569,3304.1,3304.0,8.25677893]
[1720048464131,3.93040642,3304.1,3304.0,8.25677893]